Cogmind - Beta 15 @@@ ROGUE MODE // 2025.05.09 @ 14:18:08 Player: OJ Result: Destroyed by DAS Turret with DAS Cannon Performance ------------- Evolutions (0) 0 Regions Visited (3) 600 Robots Destroyed (13) 65 Value Destroyed (282) 282 Prototype IDs (23) 460 Alien Tech Used (0) 0 Bonus (300) 300 TOTAL SCORE: 1707 Bonus ------- Aligned with FarCom 300 Cogmind --------- Core Integrity 0/250 Matter 253/300 Energy 88/250 System Corruption 6% Temperature Cool (50) Movement Rolling (105) Ox1 Location -10/Exiles Parts ------- > --- POWER (1) -------- Ion Engine > --- PROPULSION (2) --- Armored Wheel Armored Wheel > --- UTILITY (2) ------ Large Storage Unit Hardened Light Armor Plating > --- WEAPON (2) ------- Latent Energy Streamer Beam Cannon > --- INVENTORY (15) --- Light Nuclear Core Armored Wheel Armored Wheel Scrap Suit Improved Heat Sink Large Storage Unit Large Storage Unit Large Battery (200) High-capacity Matter Pod (200) Propulsion Shielding Hardened Light Armor Plating Hardened Light Armor Plating Grenade Launcher Peak State ------------ > --- POWER ------------ Ion Engine > --- PROPULSION ------- Armored Wheel Armored Wheel > --- UTILITY ---------- Large Storage Unit Hardened Light Armor Plating > --- WEAPON ----------- Latent Energy Streamer Beam Cannon > --- INVENTORY -------- Light Nuclear Core Armored Wheel Armored Wheel Scrap Suit Improved Heat Sink Large Storage Unit Large Storage Unit Large Battery High-capacity Matter Pod Propulsion Shielding Hardened Light Armor Plating Hardened Light Armor Plating Grenade Launcher Enhanced Flamer [Rating: 22] Favorites ----------- Power Ion Engine Engine Ion Engine Propulsion Armored Wheel Leg Aluminum Leg Wheel Armored Wheel Utility Large Storage Unit Storage Large Storage Unit Processor Visual Processing Unit Protection Hardened Light Armor Plating Weapon Medium Laser Energy Gun Medium Laser Energy Cannon Beam Cannon Ballistic Gun Assault Rifle Launcher Grenade Launcher Special Weapon Enhanced Flamer Build | -11 -10 -10 -10 ------- Run | Yrd Mat Min Exi Slots Evolved . | . . . . Power . | . . . . Propulsion . | . . . . Utility . | . . . . Weapon . | . . . . Parts Attached 15 | . 9 4 2 Power 3 | . 2 1 . Engine 3 | . 2 1 . Core . | . . . . Reactor . | . . . . Propulsion 3 | . 2 . 1 Treads . | . . . . Leg . | . . . . Wheel 3 | . 2 . 1 Hover . | . . . . Flight . | . . . . Utility 3 | . 2 1 . Device . | . . . . Storage 1 | . 1 . . Processor 1 | . 1 . . Hackware . | . . . . Protection 1 | . . 1 . Artifact . | . . . . Weapon 6 | . 3 2 1 Energy Gun 1 | . . 1 . Energy Cannon 2 | . 1 . 1 Ballistic Gun 1 | . 1 . . Ballistic Cannon . | . . . . Launcher 1 | . 1 . . Special Weapon 1 | . . 1 . Impact Weapon . | . . . . Slashing Weapon . | . . . . Piercing Weapon . | . . . . Special Melee Weapon . | . . . . Unidentified Prototypes . | . . . . Parts Lost 2 | . 1 . 1 Power . | . . . . Propulsion . | . . . . Utility . | . . . . Weapon 2 | . 1 . 1 Highest Loss Streak 1 | . 1 . 1 To Critical Strikes . | . . . . Average Backups 13 | . 13 14 14 Power 1 | . 1 2 1 Propulsion 3 | . 4 2 2 Utility 6 | . 4 6 9 Weapon 2 | . 2 2 2 Tool/Special . | . . . . Unused Backups 28 | . 15 2 11 Power 4 | . 2 1 1 Propulsion 10 | . 8 1 1 Utility 11 | . 2 . 9 Weapon 2 | . 2 . . Tool/Special 1 | . 1 . . Average Slot Usage (%) 96 | . 92 99 99 Engine 14 | . 14 14 14 Wheel 27 | . 27 28 28 Storage 14 | . 14 14 14 Processor 3 | . 7 . . Protection 7 | . . 13 14 Energy Gun 12 | . 12 12 9 Energy Cannon 7 | . 1 14 14 Ballistic Gun 6 | . 13 1 . Peak Build Rating 22 | . 12 14 22 Average Rating 11 | . 10 12 13 On Entrance 9 | 6 6 12 13 Naked Turns . | . . . . Heaviest Build 43 | 12 32 35 43 Greatest Support 24 | 20 24 24 24 Greatest Overweight (x) 1 | . 1 1 1 Average Overweight (x) . | . . 1 1 Largest Inventory Capacity 15 | . 15 15 15 Average Capacity 14 | . 14 15 15 Most Carried 15 | . 15 15 15 Average Carried 14 | . 13 14 14 Final Capacity 15 | 8 15 15 15 Final Carried 15 | 6 15 15 14 Class Distribution -------------------- 100% | Mutant Dominant Class ---------------- Mutant | -10/Materials Mutant | -10/Mines Mutant | -10/Exiles Resources | -11 -10 -10 -10 ----------- Run | Yrd Mat Min Exi Matter Collected 671 | 200 249 222 . Remotely . | . . . . Salvage Created 447 | . 418 29 . Parts 18 | . 16 2 . Haulers Intercepted 2 | . 2 . . Recyclers Shooed . | . . . . Parts Field Recycled . | . . . . Retrieved Matter . | . . . . Parts Self-Destructed . | . . . . Prevented . | . . . . Kills | -11 -10 -10 -10 ------- Run | Yrd Mat Min Exi Combat Hostiles Destroyed 9 | . 7 2 . Guns 6 | . 5 1 . Cannons 3 | . 2 1 . Classes Destroyed 4 | . 4 . . Hauler 2 | . 2 . . Watcher 2 | . 2 . . Swarmer 4 | . 2 2 . Grunt 5 | . 5 . . Best Kill Streak 4 | . 4 1 . Combat Bots Only 3 | . 3 1 . Max Kills in Single Turn 1 | . 1 1 . Gunslinging . | . . . . Exploded . | . . . . Melee . | . . . . Uniques/NPCs Destroyed . | . . . . Combat | -11 -10 -10 -10 -------- Run | Yrd Mat Min Exi Hostile Shots Fired 71 | . 54 9 8 Missed 20 | . 18 . 2 Hits 51 | . 36 9 6 Projectile 51 | . 36 9 6 Critical Strikes 2 | . 2 . . Part Disruptions 1 | . . . 1 Damage Taken 791 | . 494 74 223 Core 280 | . 149 . 131 Absorbed by Shields . | . . . . Core Remaining (%) 100 | 100 . . . Volleys Fired 50 | . 43 6 1 Largest 2 | . 2 2 2 Hottest 120 | . 80 110 120 Shots Fired 99 | . 84 12 3 Gun 86 | . 80 6 . Cannon 12 | . 3 6 3 Launcher 1 | . 1 . . Special . | . . . . Kinetic 42 | . 42 . . Thermal 55 | . 41 12 2 Explosive 1 | . 1 . . Electromagnetic 1 | . . . 1 Robot Hit Streak 8 | . 8 5 3 Robot Miss Streak 4 | . 4 3 . Penetration Max . | . . . . Secondary Targets 1 | . 1 . . Max Gunslinging Chain 1 | . 1 . . Shots Hit Robots 61 | . 52 7 2 Core Hits 23 | . 19 2 2 Critical Kills . | . . . . Critical Parts Destroyed . | . . . . Critical Strikes 3 | . 3 . . Burn 3 | . 3 . . Melee Attacks . | . . . . Impact . | . . . . Slashing . | . . . . Piercing . | . . . . Sneak Attacks . | . . . . Combat Hostiles . | . . . . Follow-up Attacks . | . . . . Damage Inflicted 852 | . 722 104 26 Guns 715 | . 679 36 . Cannons 120 | . 35 68 17 Explosions 9 | . . . 9 Melee . | . . . . Ramming 8 | . 8 . . Kinetic 290 | . 290 . . Thermal 545 | . 424 104 17 Explosive . | . . . . Electromagnetic 9 | . . . 9 Impact . | . . . . Slashing . | . . . . Piercing . | . . . . Highest Corruption 5 | . 1 1 5 Average Corruption 1 | . 1 1 1 Corruption Purged . | . . . . Corruption Blocked . | . . . . Effects 15 | . 7 4 4 Message Errors 4 | . 3 . 1 Matter Fused 4 | . 2 . 2 Heat Flow Errors 2 | . 2 . . Energy Discharges 2 | . . 2 . Data Loss (minor) 1 | . . 1 . Data Loss (major) 1 | . . 1 . Misfires 1 | . . . 1 Overload Shots . | . . . . Overflow Damage 9 | . . 9 . Projectiles 9 | . . 9 . Explosions . | . . . . Melee . | . . . . Knockbacks . | . . . . Impact . | . . . . Kinetic . | . . . . Secondary . | . . . . Self-Inflicted Damage 4 | . 4 . . Shots . | . . . . Rammed 1 | . 1 . . Targets Rammed 1 | . 1 . . Kicked . | . . . . Crushed . | . . . . Highest Temperature 252 | . 229 252 50 Average Temperature 81 | . 76 108 27 Received Heat Transfer 258 | . 258 . . Siege Activations . | . . . . Martial Activations . | . . . . Shielding Activations . | . . . . Robots Disrupted . | . . . . Combat Hostiles . | . . . . Robots Corrupted . | . . . . Combat Hostiles . | . . . . Parts Fried . | . . . . Impact Corruptions . | . . . . Robots Melted . | . . . . Combat Hostiles . | . . . . Parts Melted 3 | . 3 . . Heat Transferred 1739 | . 1443 259 37 Parts Sabotaged . | . . . . Parts Stolen . | . . . . Parts Stripped . | . . . . Power Chain Reactions . | . . . . Latent Energy Used 200 | . . . 200 LE Corruption 3 | . . . 3 Alert | -11 -10 -10 -10 ------- Run | Yrd Mat Min Exi Maximum Alert Level . | . . . . Low Security (%) 100 | . 100 100 . Level 1 . | . . . . Level 2 . | . . . . Level 3 . | . . . . Level 4 . | . . . . Level 5 . | . . . . High Security . | . . . . Max Security . | . . . . Peak Influence 97 | . 97 94 . Initial 10 | . . 10 . Average 18 | . 20 15 . Influence Increases 389 | . 279 110 . Destroy 0b10 Robot/C 180 | . 140 40 . Destroy 0b10 Robot/NC 20 | . 20 . . Destroy Leader 58 | . 48 10 . Successful Hack 16 | . 16 . . Disable Machine 15 | . 15 . . Destroy Structure 10 | . 10 . . Lose Combat Pursuer 90 | . 30 60 . Influence Decreases 389 | . 250 77 62 Entered New Map 81 | . . 19 62 Time Decay 269 | . 211 58 . Purge Threat 39 | . 39 . . Squads Dispatched 2 | . 2 . . Investigation 1 | . 1 . . Extermination . | . . . . Reinforcement 1 | . 1 . . Assault . | . . . . Garrison . | . . . . Intercept . | . . . . Searches Triggered . | . . . . Construction Impeded . | . . . . Haulers Reinforced . | . . . . Active Scanning Responses . | . . . . Cargo Convoy Interrupts . | . . . . Stealth | -11 -10 -10 -10 --------- Run | Yrd Mat Min Exi Distress Signals . | . . . . Communications Jammed . | . . . . Distress Signals . | . . . . Times Spotted 16 | . 11 5 . Peak Tracking Total 12 | . 3 3 12 Tactical Retreats 3 | . 1 2 . Traps | -11 -10 -10 -10 ------- Run | Yrd Mat Min Exi Traps Triggered 3 | . 3 . . Indirectly . | . . . . Trap Hack Attempts . | . . . . Triggered . | . . . . Disarmed . | . . . . Reprogrammed . | . . . . Reused . | . . . . Traps Extracted . | . . . . Installed . | . . . . Triggered . | . . . . Machines | -11 -10 -10 -10 ---------- Run | Yrd Mat Min Exi Machines Disabled 4 | . 1 . 3 Max in Single Turn 2 | . 1 . 2 Machines Repaired . | . . . . Machines Dismantled . | . . . . Machines Sabotaged . | . . . . Overloaded Fab Kills . | . . . . Hacking | -11 -10 -10 -10 --------- Run | Yrd Mat Min Exi Machines Accessed 8 | . 6 . 2 Terminals 6 | . 6 . . Fabricators . | . . . . Repair Stations . | . . . . Recycling Units . | . . . . Scanalyzers . | . . . . Garrison Access . | . . . . Total Hacks 17 | . 15 . 2 Successful 8 | . 6 . 2 Failed 9 | . 9 . . Catastrophic 3 | . 3 . . Database Lockouts . | . . . . Manual 5 | . 4 . 1 Terminals 15 | . 15 . . Fabricators . | . . . . Repair Stations . | . . . . Recycling Units . | . . . . Scanalyzers . | . . . . Garrison Access . | . . . . Terminal Hacks 8 | . 6 . 2 Record 2 | . 1 . 1 Branch Access Points 1 | . 1 . . Emergency Access Points 1 | . 1 . . Unreport Threat 1 | . 1 . . Locate Traps 1 | . 1 . . Hauler Manifests 1 | . 1 . . Proto ID Catalog 1 | . . . 1 Fabricator Hacks . | . . . . Repair Station Hacks . | . . . . Recycling Unit Hacks . | . . . . Scanalyzer . | . . . . Garrison Access Hacks . | . . . . Unauthorized Hacks . | . . . . Terminals . | . . . . Fabricators . | . . . . Repair Stations . | . . . . Recycling Units . | . . . . Scanalyzers . | . . . . Garrison Access . | . . . . Data Cores Recovered . | . . . . Used . | . . . . Hacking Detections 6 | . 6 . . Full Trace Events . | . . . . Feedback Events . | . . . . Feedback Blocked . | . . . . Robot Schematics Acquired . | . . . . Robots Built . | . . . . Authchips . | . . . . Time . | . . . . Total Robot Build Rating . | . . . . Part Schematics Acquired . | . . . . Parts Built . | . . . . Authchips . | . . . . Time . | . . . . Total Part Build Rating . | . . . . Parts Repaired . | . . . . Time . | . . . . Parts Recycled . | . . . . Recycled Matter . | . . . . Retrieved Matter . | . . . . Retrieved Components . | . . . . Parts Scanalyzed . | . . . . Part Schematics Acquired . | . . . . Parts Damaged . | . . . . Bothacking | -11 -10 -10 -10 ------------ Run | Yrd Mat Min Exi Used RIF Installer . | . . . . Robots Hacked . | . . . . Non-combat . | . . . . Combat . | . . . . Robot Hacks Applied . | . . . . Relay Couplers Released . | . . . . Fabnet Peak Effective % . | . . . . Robots Rewired . | . . . . Allies Hacked . | . . . . Hacks Repelled . | . . . . Allies | -11 -10 -10 -10 -------- Run | Yrd Mat Min Exi Total Allies . | . . . . Largest Group . | . . . . Highest-Rated Group . | . . . . Highest-Rated Ally . | . . . . Total Orders . | . . . . Ally Attacks . | . . . . Total Damage . | . . . . Kills . | . . . . Allies Corrupted . | . . . . Allies Melted . | . . . . Intel | -11 -10 -10 -10 ------- Run | Yrd Mat Min Exi Active Infowar (turns) 413 | . 413 . . Optics 413 | . 413 . . Robot Analysis Total . | . . . . Derelict Logs Recovered 1 | . . 1 . Drone Launches . | . . . . Drone Recoveries . | . . . . Exploration | -11 -10 -10 -10 ------------- Run | Yrd Mat Min Exi Turns Passed 1622 | . 800 525 297 Spaces Moved 1294 | 1 582 440 271 Core . | . . . . Treads . | . . . . Legs 9 | 1 8 . . Wheels 1285 | . 574 440 271 Hover . | . . . . Flight . | . . . . Fastest Speed 90 | 120 90 105 105 Average Speed 104 | 120 103 105 105 Slowest Speed 120 | 120 120 105 105 Overloaded Moves . | . . . . Propulsion Burnouts . | . . . . Robots Hopped . | . . . . Potential Cave-ins . | . . . . Cave-ins Triggered . | . . . . Exploration Rate (%) 57 | 2 84 83 59 Regions Visited 3 Branch Regions 2 Pre-discovered Areas . | . . . . Known Exits Taken 1 | . 1 . . Unknown Exits Taken 2 | 1 . 1 . Scrap Searched 3 | . . 3 . Spaces Dug . | . . . . Terrain Destroyed 9 | . 9 . . Melee . | . . . . Projectile . | . . . . AOE 9 | . 9 . . Terrain Rammed . | . . . . Walls Destroyed . | . . . . Machines Disabled . | . . . . Actions | -11 -10 -10 -10 --------- Run | Yrd Mat Min Exi Total 1472 | . 699 492 281 Wait 69 | . 32 35 2 Move 1291 | . 581 439 271 Hop . | . . . . Pick Up 23 | . 20 3 . Fast Attach 4 | . 2 1 1 Attach 3 | . 1 1 1 Detach . | . . . . Swap 10 | . 6 2 2 Drop 19 | . 13 5 1 Fire 50 | . 43 6 1 Melee . | . . . . Ram 1 | . 1 . . Kick . | . . . . Crush . | . . . . Escape Stasis . | . . . . Rewire 2 | . . . 2 Trap . | . . . . Miscellaneous . | . . . . Route ------- -11/Scrapyard -10/Materials (discovered 4 exits: [*Mat x3] / *Min) -10/Mines (discovered 2 exits: [*Mat] / *Exi) -10/Exiles History --------- Turn | Location | Event 1 | -11/Scrapyard | Discovered new exit (range 0) 1 | -11/Scrapyard | Entered Materials 28 | -10/Materials | Identified exit to Mines 142 | -10/Materials | Discovered new exit (range 10) 304 | -10/Materials | Build established: Mutant 395 | -10/Materials | Discovered new exit (range 9) 674 | -10/Materials | Discovered new exit (range 16) 740 | -10/Materials | Core integrity fell below 50% 801 | -10/Materials | Entered Mines 804 | -10/Mines | Met a Derelict bent on vengeance 807 | -10/Mines | Deemed a non-threat by the Exiles lab entrance 807 | -10/Mines | Discovered new exit (range 5) 836 | -10/Mines | A weapon hastily lodged in a ceiling crevice suddenly fell to the ground 923 | -10/Mines | Discovered new exit (range 10) 1050 | -10/Mines | Learned Materials stockpile data 1157 | -10/Mines | Found a Scrap Suit stashed away for nefarious purposes 1160 | -10/Mines | Found Scrap Suit 1326 | -10/Mines | Entered Exiles 1353 | -10/Exiles | Met 8R-AWN 1376 | -10/Exiles | Met EX-HEX 1433 | -10/Exiles | Met EX-BIN 1445 | -10/Exiles | Aligned with FarCom system 1446 | -10/Exiles | Given EX-Vault access code 1470 | -10/Exiles | Opened EX-Vault 1517 | -10/Exiles | Found Latent Energy Streamer 1546 | -10/Exiles | Warned to stay clear of 0b10 Research branches 1574 | -10/Exiles | Met EX-DEC 1615 | -10/Exiles | Attacked by the Exiles 1622 | -10/Exiles | Core integrity fell below 20% 1623 | -10/Exiles | Destroyed by DAS Turret with DAS Cannon Last Messages --------------- change it right after you leave. Most certainly not to something like 1234 which I did last time as a little joke and some thief managed to sneak in here and steal a few of HEX's prototypes. EX-DEC: Ah I see we have a visitor. One wrong move in here and I'll invert your atomic chain! 01576_ EX-DEC: "Oops, I hope HEX didn't hear that..." BZ-2BR(z): I wish the Exiles would finish that old telephasing project they were working on, it sure would save us a lot of time when running errands. I'm not complaining though, nope, not me! I get that having only half of the bot ever arrive at its destination is tough on maintenance, and they said there likely wouldn't be any breakthroughs in the near term so they're doing FarCom instead. 01614_ System corrupted: FCS attempts to trigger Beam Cannon. 01614_ System corrupted: Beam Cannon misfires. 01614_ Machine disabled. 01615_ EXILES: Hostile robot within lab perimeter. Defensive protocols time, folks! 01619_ Enh. Flamer destroyed. 01621_ Machine disabled. Map ----- +----------------------------------------------------+ | ????????????# | | ?????????????# | | ??????????????#" | | ??????????????#""" """""" | | ?????????????##" ######""" | | ?????????????#"" ""##????#####""" | | ????????????##""" """##?????????##""" | | ????????????#""" """##???????????#"""" | | ????????????#""" ""#????????????#"" | | ????????????#"" ###??#???????#"""" | | ????????????#""" ## ?????"" | | ????????????#"" "??" | | ????????????##"" ?? | | ?????????????#"" ? | | ?????????????## ? | | ??????????????# " ?? "" | | ??????????????# ""????##""" " " | | ??????????????# ""#???????####""" | | ??????????????# """"##??????????###"" | | ??????????????#" c """#?????????????### | | ??????????????## ""#????????????????? | | ???????????????#"" ""##????????????????? | | ???????????????##""" ##?????????????????? | | ????????????????##"""" ##??????????????????? | | ?????????????????### % #???????????????????? | | ???????????????????##### @% ##???????????????????? | | ???????????????????????## #????????????????????? | | ????????????????????????# % ##???????????????????? | | ????????????????????????# ;#???????????????????? | | ????????????????????????# ##???????????????????? | | ????????????????????????# #????????????????????? | | ????????????????????????# #????????????????????? | | ????????????????????????# #????????????????????? | | ????????????????????????# #????????????????????? | | ????????????????????????# #????????????????????? | | ????????????????????????# #????????????????????? | | ????????????????????????# #????????????????????? | | ????????????????????????" "????????????????????? | | ???????????????????????? ????????????????????? | | ???????????????????????? ????????????????????? | | ???????????????????????? ???????????????????? | | ???????????????????????? ????????????????????? | | ???????????????????????? ???????????????????? | | ????????????????????????" ????????????????????? | | ?????????????????????????##""????????????????????? | | ?????????????????????????????????????????????????? | | ?????????????????????????????????????????????????? | | ?????????????????????????????????????????????????? | | ?????????????????????????????????????????????????? | | ?????????????????????????????????????????????????? | +----------------------------------------------------+ Best States ------------- Heat Dissipation 25 Energy Generation 10 Energy Capacity 250 Matter Stores 300 Matter Capacity 300 Sight Range 18 Terrain Scan Density 10 Armor Coverage 150 Evasion (%) 45 Item Schematics ----------------- None Robot Schematics ------------------ None Fabricated ------------ Nothing Repaired ---------- Nothing Alien Tech Used ----------------- None Achievements -------------- None Challenges ------------ None Game ------ Seed LightAuthchipAutocannon Manual? 0 Play Time 00:30:06 Cumulative 95.8 hours Start 2025.05.09 @ 12:36:30 End 2025.05.09 @ 14:18:08 Sessions 3 Manual Loads 0 Difficulty Rogue Special Mode None Game No. 81 Rogue 81 Adventurer 0 Explorer 0 Win Type - Total 0 Types 0/0/0/0/0/0/0/0/0/0 Lore% 28 Gallery% 48 Achievement% 49 Wizard Run 0 Options --------- Layout 0 ASCII 0 Keyboard 0 Movement Numpad Keybinds 0 Fullscreen 1 Font 18/SmallcapsGlow Map View 76x50 Zoom Use 0% Tactical HUD 1 Map Filters NONE Filters NONE Steam 1 RUN: 6dcd9ea4-f309-4118-96dd-9954b9e95d5f